Cogmind - Beta 17.1 @@@ ROGUE MODE // 2026.08.30 @ 15:58:03 Player: ATOM Result: Destroyed by G-34 Mercenary with Small Laser Performance ------------- Evolutions (0) 0 Regions Visited (1) 200 Robots Destroyed (22) 110 Value Destroyed (597) 597 Prototype IDs (2) 40 Alien Tech Used (0) 0 Bonus (0) 0 TOTAL SCORE: 947 Bonus ------- None Cogmind --------- Core Integrity 0/250 Matter 230/300 Energy 250/250 System Corruption 4% Temperature Critical (503) Movement Treading (160) Location -10/Materials Parts ------- > --- POWER (1) -------- Ion Engine > --- PROPULSION (2) --- Light Treads Light Treads > --- UTILITY (2) ------ Small Storage Unit Authchip [Armor] > --- WEAPON (2) ------- Medium Laser Particle Gun > --- INVENTORY (8) ---- Light Ion Engine Light Nuclear Core Light Treads Wheel Heat Sink Grenade Launcher Peak State ------------ > --- POWER ------------ Ion Engine > --- PROPULSION ------- Wheel Compact Wheel > --- UTILITY ---------- Small Storage Unit Authchip [Armor] > --- WEAPON ----------- Medium Laser Assault Rifle > --- INVENTORY -------- Light Ion Engine Light Nuclear Core Light Treads Light Treads Medium Laser Particle Gun Grenade Launcher [Rating: 11] Favorites ----------- Power Ion Engine Engine Ion Engine Propulsion Light Treads Treads Light Treads Wheel Compact Wheel Utility Small Storage Unit Storage Small Storage Unit Hackware Authchip [Armor] Weapon Assault Rifle Energy Gun Medium Laser Ballistic Gun Assault Rifle Build | -11 -10 ------- Run | Yrd Mat Slots Evolved . | . . Power . | . . Propulsion . | . . Utility . | . . Weapon . | . . Parts Attached 13 | 6 7 Power 1 | 1 . Engine 1 | 1 . Core . | . . Reactor . | . . Propulsion 4 | 2 2 Treads 2 | . 2 Leg . | . . Wheel 2 | 2 . Hover . | . . Flight . | . . Utility 2 | 1 1 Device . | . . Storage 1 | 1 . Processor . | . . Hackware 1 | . 1 Protection . | . . Artifact . | . . Weapon 6 | 2 4 Energy Gun 5 | 1 4 Energy Cannon . | . . Ballistic Gun 1 | 1 . Ballistic Cannon . | . . Launcher . | . . Special Weapon . | . . Impact Weapon . | . . Slashing Weapon . | . . Piercing Weapon . | . . Special Melee Weapon . | . . Unidentified Prototypes . | . . Corrupted Parts 1 | . 1 System Corruption 4 | . 4 Parts Lost 2 | . 2 Power . | . . Propulsion . | . . Utility . | . . Weapon 2 | . 2 Highest Loss Streak 1 | . 1 To Critical Strikes . | . . Average Backups 6 | 1 6 Power 1 | . 1 Propulsion 1 | 1 2 Utility . | . . Weapon 1 | . 2 Tool/Special . | . . Unused Backups 5 | . 5 Power 2 | . 2 Propulsion 1 | . 1 Utility 1 | . 1 Weapon 1 | . 1 Tool/Special . | . . Average Slot Usage (%) 95 | . 95 Engine 14 | . 14 Treads 14 | . 14 Wheel 13 | . 13 Storage 14 | . 14 Hackware 10 | . 10 Energy Gun 15 | . 15 Ballistic Gun 11 | . 11 Peak Build Rating 11 | 6 11 Average Rating 9 | 3 9 On Entrance 3 | . 6 Avg Prop Armor Cover (%) . | . . Naked Turns . | . . Heaviest Build 15 | 14 15 Greatest Support 40 | 26 40 Greatest Overweight (x) . | . . Average Overweight (x) . | . . Largest Inventory Capacity 8 | 8 8 Average Capacity 7 | 6 8 Most Carried 8 | 3 8 Average Carried 6 | 1 6 Final Capacity 8 | 8 8 Final Carried 6 | 3 6 Class Distribution -------------------- 100% | Mutant Dominant Class ---------------- Mutant | -10/Materials Resources | -11 -10 ----------- Run | Yrd Mat Matter Collected 537 | 218 319 Remotely . | . . Salvage Created 753 | . 753 Parts 44 | . 44 Haulers Intercepted . | . . Recyclers Shooed . | . . Parts Field Recycled . | . . Retrieved Matter . | . . Parts Self-Destructed . | . . Prevented . | . . Parts Restored . | . . Kills | -11 -10 ------- Run | Yrd Mat Combat Hostiles Destroyed 16 | . 16 Guns 15 | . 15 Classes Destroyed 5 | . 5 Recycler 1 | . 1 Operator 2 | . 2 Watcher 3 | . 3 Swarmer 3 | . 3 Grunt 13 | . 13 Best Kill Streak 5 | . 5 Combat Bots Only 4 | . 4 Max Kills in Single Turn 2 | . 2 Gunslinging 1 | . 1 Exploded . | . . Melee . | . . Uniques/NPCs Destroyed . | . . Combat | -11 -10 -------- Run | Yrd Mat Hostile Shots Fired 95 | . 95 Missed 22 | . 22 Hits 73 | . 73 Projectile 73 | . 73 Damage Taken 893 | . 893 Core 260 | . 260 Absorbed by Shields . | . . Core Remaining (%) 100 | 100 . Volleys Fired 71 | . 71 Largest 2 | . 2 Hottest 115 | . 115 Shots Fired 129 | . 129 Gun 129 | . 129 Cannon . | . . Launcher . | . . Special . | . . Kinetic 49 | . 49 Thermal 80 | . 80 Explosive . | . . Electromagnetic . | . . Robot Hit Streak 21 | . 21 Robot Miss Streak 2 | . 2 Penetration Max . | . . Secondary Targets 4 | . 4 Max Gunslinging Chain 1 | . 1 Shots Hit Robots 90 | . 90 Core Hits 38 | . 38 Critical Kills . | . . Critical Parts Destroyed . | . . Critical Strikes 3 | . 3 Burn 3 | . 3 Melee Attacks . | . . Impact . | . . Slashing . | . . Piercing . | . . Sneak Attacks . | . . Combat Hostiles . | . . Follow-up Attacks . | . . Damage Inflicted 1198 | . 1198 Guns 1197 | . 1197 Cannons . | . . Explosions . | . . Melee . | . . Ramming 1 | . 1 Kinetic 413 | . 413 Thermal 784 | . 784 Explosive . | . . Electromagnetic . | . . Impact . | . . Slashing . | . . Piercing . | . . Highest Corruption 4 | . 4 Average Corruption 4 | . 4 Corruption Purged . | . . Corruption Blocked . | . . Effects 17 | . 17 Message Errors 1 | . 1 Matter Fused 5 | . 5 Heat Flow Errors 2 | . 2 Energy Discharges 5 | . 5 Data Loss (minor) 2 | . 2 Misfires 1 | . 1 Weapon Failures 1 | . 1 Overload Shots . | . . Overflow Damage . | . . Projectiles . | . . Explosions . | . . Melee . | . . Knockbacks . | . . Impact . | . . Kinetic . | . . Secondary . | . . Self-Inflicted Damage . | . . Shots . | . . Rammed 1 | . 1 Targets Rammed 1 | . 1 Kicked . | . . Crushed . | . . Highest Temperature 537 | . 537 Average Temperature 128 | . 128 Received Heat Transfer 459 | . 459 Effects 10 | . 10 Shutdowns 3 | . 3 Energy Bleed 2 | . 2 Matter Decay 2 | . 2 Damage (minor) 1 | . 1 Damage (major) 1 | . 1 Damage (core) 1 | . 1 Siege Activations . | . . Martial Activations . | . . Shielding Activations . | . . Robots Disrupted . | . . Combat Hostiles . | . . Robots Corrupted . | . . Combat Hostiles . | . . Parts Fried . | . . Impact Corruptions . | . . Robots Melted 1 | . 1 Combat Hostiles 1 | . 1 Parts Melted 3 | . 3 Heat Transferred 2368 | . 2368 Parts Sabotaged . | . . Parts Stolen . | . . Parts Stripped . | . . Power Chain Reactions . | . . Alert | -11 -10 ------- Run | Yrd Mat Maximum Alert Level . | . . Low Security (%) 100 | 100 100 Level 1 . | . . Level 2 . | . . Level 3 . | . . Level 4 . | . . Level 5 . | . . High Security . | . . Max Security . | . . Peak Influence 154 | . 154 Initial . | . . Average 58 | . 62 Influence Increases 469 | . 469 Destroy 0b10 Robot/C 320 | . 320 Destroy 0b10 Robot/NC 30 | . 30 Destroy Leader 76 | . 76 Successful Hack 10 | . 10 Destroy Structure 3 | . 3 Partial Spotted 15 | . 15 Lose Combat Pursuer 15 | . 15 Influence Decreases 323 | . 323 Time Decay 303 | . 303 Lost Part 20 | . 20 Squads Dispatched 3 | . 3 Investigation 1 | . 1 Extermination . | . . Reinforcement 2 | . 2 Assault . | . . Garrison . | . . Intercept . | . . Searches Triggered . | . . Construction Impeded . | . . Haulers Reinforced . | . . Active Scanning Responses . | . . Cargo Convoy Interrupts . | . . Stealth | -11 -10 --------- Run | Yrd Mat Distress Signals . | . . Communications Jammed . | . . Distress Signals . | . . Times Spotted 27 | . 27 Peak Tracking Total 4 | . 4 Tactical Retreats 1 | . 1 Traps | -11 -10 ------- Run | Yrd Mat Traps Triggered 2 | . 2 Indirectly . | . . Trap Hack Attempts . | . . Triggered . | . . Disarmed . | . . Reprogrammed . | . . Reused . | . . Traps Extracted . | . . Installed . | . . Triggered . | . . Machines | -11 -10 ---------- Run | Yrd Mat Machines Disabled . | . . Max in Single Turn . | . . Machines Repaired . | . . Machines Dismantled . | . . Machines Sabotaged . | . . Overloaded Fab Kills . | . . Hacking | -11 -10 --------- Run | Yrd Mat Machines Accessed 4 | . 4 Terminals 3 | . 3 Fabricators . | . . Repair Stations . | . . Recycling Units 1 | . 1 Scanalyzers . | . . Garrison Access . | . . Total Hacks 14 | . 14 Successful 7 | . 7 Failed 7 | . 7 Catastrophic . | . . Database Lockouts . | . . Manual . | . . Terminals 11 | . 11 Fabricators . | . . Repair Stations . | . . Recycling Units 3 | . 3 Scanalyzers . | . . Garrison Access . | . . Terminal Hacks 5 | . 5 Prototype ID Bank 1 | . 1 Emergency Access Points 1 | . 1 Alert Level 1 | . 1 Dispatch Records 1 | . 1 Zone Layout 1 | . 1 Fabricator Hacks . | . . Repair Station Hacks . | . . Recycling Unit Hacks 2 | . 2 Report Inventory 1 | . 1 Retrieve Components 1 | . 1 Scanalyzer . | . . Garrison Access Hacks . | . . Unauthorized Hacks . | . . Terminals . | . . Fabricators . | . . Repair Stations . | . . Recycling Units . | . . Scanalyzers . | . . Garrison Access . | . . Data Cores Recovered . | . . Used . | . . Hacking Detections 4 | . 4 Full Trace Events 1 | . 1 Feedback Events . | . . Feedback Blocked . | . . Robot Schematics Acquired . | . . Robots Built . | . . Authchips . | . . Time . | . . Total Robot Build Rating . | . . Part Schematics Acquired . | . . Parts Built . | . . Authchips . | . . Time . | . . Total Part Build Rating . | . . Part Studies Acquired . | . . Parts Repaired . | . . Time . | . . Parts Recycled . | . . Recycled Matter . | . . Retrieved Matter . | . . Retrieved Components 4 | . 4 Parts Scanalyzed . | . . Part Schematics Acquired . | . . Parts Damaged . | . . Bothacking | -11 -10 ------------ Run | Yrd Mat Used RIF Installer . | . . Robots Hacked . | . . Non-combat . | . . Combat . | . . Robot Hacks Applied . | . . Relay Couplers Released . | . . Fabnet Peak Effective % . | . . Robots Rewired . | . . Allies Hacked . | . . Hacks Repelled . | . . Allies | -11 -10 -------- Run | Yrd Mat Total Allies . | . . Largest Group . | . . Highest-Rated Group . | . . Highest-Rated Ally . | . . Total Orders . | . . Ally Attacks . | . . Total Damage . | . . Kills . | . . Allies Corrupted . | . . Allies Melted . | . . Intel | -11 -10 ------- Run | Yrd Mat Active Infowar (turns) . | . . Robot Analysis Total . | . . Derelict Logs Recovered . | . . Drone Launches . | . . Drone Recoveries . | . . Exploration | -11 -10 ------------- Run | Yrd Mat Turns Passed 830 | 56 774 Spaces Moved 457 | 46 411 Core 2 | 2 . Treads 165 | . 165 Legs . | . . Wheels 290 | 44 246 Hover . | . . Flight . | . . Fastest Speed 50 | 50 90 Average Speed 115 | 89 118 Slowest Speed 160 | 100 160 Overloaded Moves . | . . Propulsion Burnouts . | . . Robots Hopped . | . . Potential Cave-ins . | . . Cave-ins Triggered . | . . Exploration Rate (%) 30 | 3 58 Regions Visited 1 Branch Regions . Pre-discovered Areas . | . . Known Exits Taken . | . . Unknown Exits Taken 1 | 1 . Scrap Searched . | . . Spaces Dug . | . . Terrain Destroyed . | . . Melee . | . . Projectile . | . . AOE . | . . Terrain Rammed . | . . Walls Destroyed . | . . Machines Disabled . | . . Actions | -11 -10 --------- Run | Yrd Mat Total 629 | 60 569 Wait 64 | . 64 Move 456 | 45 411 Hop . | . . Pick Up 19 | 9 10 Fast Attach 1 | . 1 Attach 11 | 6 5 Detach . | . . Swap 3 | . 3 Drop 3 | . 3 Fire 71 | . 71 Melee . | . . Ram . | . . Kick . | . . Crush 1 | . 1 Escape Stasis . | . . Rewire . | . . Trap . | . . Miscellaneous . | . . Route ------- -11/Scrapyard -10/Materials (discovered 1 exit: [*Min]) History --------- Turn | Location | Event 8 | -11/Scrapyard | Discovered new exit (range 16) 57 | -11/Scrapyard | Entered Materials 288 | -10/Materials | Core integrity fell below 50% 313 | -10/Materials | Build established: Mutant 356 | -10/Materials | Discovered new exit (range 8) 728 | -10/Materials | Core integrity fell below 20% 831 | -10/Materials | Destroyed by G-34 Mercenary with Small Laser Last Messages --------------- 00811_ G-34 Mercenary suffers critical hit (Burn). 00812_ G-34 Mercenary critical meltdown. 00813_ Acquired 37 matter. 00817_ G-34 Mercenary suffers critical hit (Burn). 00820_ Power failure, Ion Engine shutdown. 00821_ G-34 Mercenary overheating. 00824_ Overheating: Matter decay (-43). 00824_ G-34 Mercenary heat damages Heat Sink. 00824_ G-34 Mercenary overheating. 00825_ G-34 Mercenary heat spikes uncontrollably. 00825_ G-34 Mercenary overheating. 00826_ G-34 Mercenary heat short circuits Aluminum Leg. 00826_ G-34 Mercenary overheating. 00829_ Slammed into G-34 Mercenary. 00830_ Overheating: Core damaged (-45). 00830_ G-34 Mercenary overheating. Map ----- +----------------------------------------------------+ | ??????????? ## [==# # """ #????????# #?# | | ??????????? ## = %# # "" #??????### ### """ | | ??????????? ## =[+ + """ #??????# # """ | | ??????????????#" """!# # "" #??????# # """ | | ??????????????#" """ # # "" #??????# # | | ??????????????#" """ # # " #??????# # """ | | ??????????????#T / # #??????# # """ | | ??????????????#" """ ## #######??????#### ## """ | | ??????????????#" """ ## #???????????????? ? | | ??????????????#" """ ## #######??????????##?#### | | ??????????????# =% ## ?????????????????? | | ??????????????####+##### ??????????????????? | | ?????????????????#=#???# a #??????????????????? | | ?????????????????# #???## #??????????????????? | | ?????????????????# #????# #??????????????????? | | ?????????????????#/###### #??????????????????? | | ?????????????????# # #??????????????????? | | ?????????????????# # ###????????????????? | | ?????????????????# + =% +??????????? | | ?????????????????# # ######## ####??????????? | | ?????????????????# # #??????????????????????? | | ?????????????????# | # #??????????????????????? | | ?????????????????######## #??????????????????????? | | ????????????????????????#[#??????????????????????? | | ????????????????????????#[#??????????????????????? | | ????????????????????#####@#####??????????????????? | | ????????????????????# g% #??????????????????? | | ????????????????????# = #??????????????????? | | ????????????????????# * #??????????????????? | | ????????????????????# #??????????????????? | | ????????????????????###########??????????????????? | | | | | | | | | | | | | | | | | | | | | | | | | | | | | | | | | | | | | | | +----------------------------------------------------+ Best States ------------- Heat Dissipation 25 Energy Generation 10 Energy Capacity 250 Matter Stores 300 Matter Capacity 300 Sight Range 16 Terrain Scan Density 10 Evasion (%) 42 Recoil Reduction 2 Authchip Count 1 Item Schematics ----------------- None Robot Schematics ------------------ None Fabricated ------------ Nothing Repaired ---------- Nothing Studied --------- None Alien Tech Used ----------------- None Achievements -------------- None Challenges ------------ None Game ------ Seed MicroDispersionFrame Manual? 0 Play Time 00:11:45 Cumulative 38.9 hours Start 2026.08.29 @ 00:36:19 End 2026.08.30 @ 15:58:03 Sessions 2 Manual Loads 0 Difficulty Rogue Special Mode None Game No. 57 Rogue 57 Adventurer 0 Explorer 0 Win Type - Total 0 Types 0/0/0/0/0/0/0/0/0/0 Lore% 19 Gallery% 23 Achievement% 20 Wizard Run 0 Options --------- Layout 1 ASCII 0 Keyboard 0 Movement Mouse Keybinds 0 Fullscreen 1 Font 16/SmallcapsGlow Map View 50x40 Zoom Use 0% Tactical HUD 1 Map Filters NONE Filters NONE Steam SD RUN: 79efab1b-6fb3-4417-ad9a-d3e57e84cdf2